fUSD/lending_fUSD_20250113
["ID","MTS","AMOUNT","RATE_DAILY","PERIOD"]
[348819773,1736791869354,-500.0,0.00011365,2]
[348819774,1736791869363,-448.84,0.00011365,2]
[348819775,1736791869372,-500.0,0.00011365,2]
[348819776,1736791869381,-620.5,0.00011365,2]
[348819777,1736791869392,-500.0,0.00011365,2]
[348819778,1736791869401,-500.0,0.00011365,2]
[348819779,1736791869411,-500.0,0.00011365,2]
[348819780,1736791869420,-500.0,0.00011365,2]
[348819781,1736791869430,-500.0,0.00011365,2]
[348819782,1736791869439,-500.0,0.00011365,2]
[348819783,1736791869449,-500.0,0.00011365,2]
[348819784,1736791869458,-571.04,0.00011365,2]
[348819785,1736791869467,-500.0,0.00011365,2]
[348819786,1736791869476,-500.0,0.00011365,2]
[348819787,1736791869485,-500.0,0.00011365,2]
[348819788,1736791869494,-500.0,0.00011365,2]
[348819789,1736791869504,-500.0,0.00011365,2]
[348819790,1736791869513,-500.0,0.00011365,2]
[348819791,1736791869522,-500.0,0.00011365,2]
[348819792,1736791869531,-500.0,0.00011365,2]
[348819793,1736791869540,-500.0,0.00011365,2]
[348819794,1736791869549,-500.0,0.00011365,2]
[348819795,1736791869559,-500.0,0.00011365,2]
[348819796,1736791869569,-500.0,0.00011365,2]
[348819797,1736791869579,-500.0,0.00011365,2]
[348819798,1736791869589,-500.0,0.00011365,2]
[348819799,1736791869600,-500.0,0.00011365,2]
[348819800,1736791869609,-500.0,0.00011365,2]
[348819801,1736791869619,-522.55,0.00011365,2]
[348819802,1736791869629,-500.0,0.00011365,2]
[348819803,1736791869640,-500.0,0.00011365,2]
[348819804,1736791869649,-500.0,0.00011365,2]
[348819805,1736791869659,-500.0,0.00011365,2]
[348819806,1736791869669,-500.0,0.00011365,2]
[348819807,1736791869677,-500.0,0.00011365,2]
[348819808,1736791869687,-500.0,0.00011365,2]
[348819809,1736791869696,-500.0,0.00011365,2]
[348819810,1736791869705,-500.0,0.00011365,2]
[348819811,1736791869715,-583.75,0.00011365,2]
[348819812,1736791869724,-500.0,0.00011365,2]
[348819813,1736791869733,-500.0,0.00011365,2]
[348819814,1736791869743,-500.0,0.00011365,2]
[348819815,1736791869752,-500.0,0.00011365,2]
[348819816,1736791869762,-500.0,0.00011365,2]
[348819817,1736791869771,-500.0,0.00011365,2]
[348819818,1736791869781,-500.0,0.00011365,2]
[348819819,1736791869790,-500.0,0.00011365,2]
[348819820,1736791869800,-500.0,0.00011365,2]
[348819821,1736791869810,-500.0,0.00011365,2]
[348819822,1736791869819,-500.0,0.00011365,2]
[348819823,1736791869827,-500.0,0.00011365,2]
[348819824,1736791869837,-500.0,0.00011365,2]
[348819825,1736791869847,-500.0,0.00011365,2]
[348819826,1736791869857,-500.0,0.00011365,2]
[348819827,1736791869867,-500.0,0.00011365,2]
[348819828,1736791869879,-500.0,0.00011365,2]
[348819829,1736791869890,-500.0,0.00011365,2]
[348819830,1736791869900,-500.0,0.00011365,2]
[348819831,1736791869910,-500.0,0.00011365,2]
[348819832,1736791869919,-500.0,0.00011365,2]
[348819833,1736791869929,-500.0,0.00011365,2]
[348819834,1736791869940,-500.0,0.00011366,2]
[348819835,1736791869949,-766.88,0.00011366,2]
[348819836,1736791869959,-606.04,0.00011366,2]
[348819837,1736791869969,-543.4,0.00011366,2]
[348819838,1736791869979,-526.56,0.00011366,2]
[348819839,1736791869989,-796.11,0.00011366,2]
[348819840,1736791869999,-3037.71,0.00011366,2]
[348819841,1736791870014,-2447.81,0.00011366,2]
[348819842,1736791870024,-500.0,0.00011366,2]
[348819843,1736791870034,-2751.0,0.00011507,2]
[348819844,1736791870043,-587.0,0.00011532,2]
[348819845,1736791870055,-500.0,0.00011637,2]
[348819846,1736791870064,-500.0,0.00011637,2]
[348819847,1736791870074,-500.0,0.00011637,2]
[348819848,1736791870084,-500.0,0.00011637,2]
[348819849,1736791870094,-389.82041904,0.00011637,2]
[348819850,1736791870104,-521.6,0.00011638,2]
[348819851,1736791870114,-273.43,0.00011638,2]
[348819852,1736791870124,-500.0,0.00011638,2]
[348819853,1736791870133,-657.79,0.00011638,2]
[348819854,1736791870144,-657.79,0.00011638,2]
[348819855,1736791870154,-500.0,0.00011638,2]
[348819856,1736791870163,-500.0,0.00011638,2]
[348819857,1736791870174,-500.0,0.00011638,2]
[348819858,1736791870184,-500.0,0.00011638,2]
[348819859,1736791870194,-584.58718872,0.00011638,2]
[348819860,1736791870203,-500.0,0.00011638,2]
[348819861,1736791870213,-589.53,0.00011638,2]
[348819862,1736791870224,-500.0,0.00011638,2]
[348819863,1736791870233,-500.0,0.00011638,2]
[348819864,1736791870242,-500.0,0.00011638,2]
[348819865,1736791870252,-500.0,0.00011638,2]
[348819866,1736791870262,-500.0,0.00011638,2]
[348819867,1736791870272,-500.0,0.00011638,2]
[348819868,1736791870282,-500.0,0.00011638,2]
[348819869,1736791870291,-500.0,0.00011638,2]
[348819870,1736791870301,-500.0,0.00011638,2]
[348819871,1736791870310,-456.70602202,0.00011638,2]
[348819872,1736791870319,-500.0,0.00011638,2]
[348819873,1736791870329,-500.0,0.00011638,2]
[348819874,1736791870338,-500.0,0.00011638,2]
[348819875,1736791870348,-500.0,0.00011638,2]
[348819876,1736791870358,-500.0,0.00011638,2]
[348819877,1736791870367,-500.0,0.00011638,2]
[348819878,1736791870377,-500.0,0.00011638,2]
[348819879,1736791870388,-776.25,0.00011638,2]
[348819880,1736791870398,-500.0,0.00011638,2]
[348819881,1736791870407,-500.0,0.00011638,2]
[348819882,1736791870416,-500.0,0.00011638,2]
[348819883,1736791870425,-500.0,0.00011638,2]
[348819884,1736791870435,-500.0,0.00011638,2]
[348819885,1736791870444,-500.0,0.00011638,2]
[348819886,1736791870455,-500.0,0.00011638,2]
[348819887,1736791870465,-500.0,0.00011638,2]
[348819888,1736791870474,-391.42,0.00011638,2]
[348819889,1736791870484,-500.0,0.00011638,2]
[348819890,1736791870493,-500.0,0.00011638,2]
[348819891,1736791870503,-500.0,0.00011638,2]
[348819892,1736791870513,-500.0,0.00011638,2]
[348819893,1736791870522,-1465.81,0.00011638,2]
[348819894,1736791870533,-1070.74,0.00011638,2]
[348819895,1736791870542,-500.0,0.00011638,2]
[348819896,1736791870553,-500.0,0.00011638,2]
[348819897,1736791870561,-933.39,0.00011638,2]
[348819898,1736791870571,-500.0,0.00011638,2]
[348819899,1736791870580,-500.0,0.00011638,2]
[348819900,1736791870591,-500.0,0.00011638,2]
[348819901,1736791870600,-500.0,0.00011638,2]
[348819902,1736791870610,-358.9,0.00011638,2]
[348819903,1736791870621,-500.0,0.00011638,2]
[348819904,1736791870631,-465.602281,0.00011638,2]
[348819905,1736791870642,-500.0,0.00011638,2]
[348819906,1736791870651,-500.0,0.00011638,2]
[348819907,1736791870661,-500.0,0.00011638,2]
[348819908,1736791870671,-500.0,0.00011638,2]
[348819909,1736791870680,-973.22,0.00011638,2]
[348819910,1736791870690,-500.0,0.00011638,2]
[348819911,1736791870699,-500.0,0.00011638,2]
[348819912,1736791870709,-500.0,0.00011638,2]
[348819913,1736791870719,-1000.0,0.00011638,2]
[348819914,1736791870728,-497.491515,0.00011638,2]
[348819915,1736791870738,-500.0,0.00011638,2]
[348819916,1736791870748,-500.0,0.00011638,2]
[348819917,1736791870757,-500.0,0.00011638,2]
[348819918,1736791870767,-500.0,0.00011638,2]
[348819919,1736791870776,-500.0,0.00011638,2]
[348819920,1736791870786,-500.0,0.00011638,2]
[348819921,1736791870795,-500.0,0.00011638,2]
[348819922,1736791870805,-207.9,0.00011638,2]
[348819923,1736791870815,-500.0,0.00011638,2]
[348819924,1736791870824,-500.0,0.00011638,2]
[348819925,1736791870834,-155.20076,0.00011638,2]
[348819926,1736791870844,-500.0,0.00011638,2]
[348819927,1736791870853,-548.9,0.00011638,2]
[348819928,1736791870863,-500.0,0.00011638,2]
[348819929,1736791870872,-500.0,0.00011638,2]
[348819930,1736791870881,-733.55,0.00011638,2]
[348819931,1736791870892,-152.011297,0.00011638,2]
[348819932,1736791870902,-805.44,0.00011638,2]
[348819933,1736791870912,-162.5,0.00011638,2]
[348819934,1736791870922,-530.11,0.00011638,2]
[348819935,1736791870932,-500.0,0.00011638,2]
[348819936,1736791870942,-582.18,0.00011638,2]
[348819937,1736791870952,-500.0,0.00011638,2]
[348819938,1736791870961,-582.81,0.00011638,2]
[348819939,1736791870972,-803.75,0.00011638,2]
[348819940,1736791870982,-1134.79,0.00011638,2]
[348819941,1736791870991,-521.94,0.00011638,2]
[348819942,1736791871001,-500.0,0.00011639,2]
[348819943,1736791871015,-2064.07,0.00011639,2]
[348819944,1736791871025,-500.0,0.00011639,2]
[348819945,1736791871035,-500.0,0.00011639,2]
[348819946,1736791871047,-159.60601543,0.00011639,2]
[348819947,1736791871057,-451.55,0.00011639,2]
[348819948,1736791871066,-500.0,0.00011639,2]
[348819949,1736791871076,-500.0,0.00011639,2]
[348819950,1736791871086,-500.0,0.00011639,2]
[348819951,1736791871097,-500.0,0.00011639,2]
[348819952,1736791871107,-500.0,0.00011639,2]
[348819953,1736791871117,-500.0,0.00011639,2]
[348819954,1736791871127,-500.0,0.00011639,2]
[348819955,1736791871139,-500.0,0.00011639,2]
[348819956,1736791871148,-673.62,0.00011639,2]
[348819957,1736791871158,-500.0,0.00011639,2]
[348819958,1736791871167,-500.0,0.00011639,2]
[348819959,1736791871177,-435.43,0.00011639,2]
[348819960,1736791871187,-500.0,0.00011639,2]
[348819961,1736791871197,-500.0,0.00011639,2]
[348819962,1736791871206,-500.0,0.00011639,2]
[348819963,1736791871215,-370.59672431,0.00011639,2]
[348819964,1736791871224,-500.0,0.00011639,2]
[348819965,1736791871234,-500.0,0.00011639,2]
[348819966,1736791871244,-500.0,0.00011639,2]
[348819967,1736791871253,-500.0,0.00011639,2]
[348819968,1736791871264,-797.59,0.00011639,2]
[348819969,1736791871274,-500.0,0.00011639,2]
[348819970,1736791871284,-500.0,0.00011639,2]
[348819971,1736791871294,-500.0,0.00011639,2]
[348819972,1736791871304,-620.5,0.00011639,2]
[348819973,1736791871314,-500.0,0.00011639,2]
[348819974,1736791871324,-424.35,0.00011639,2]
[348819975,1736791871334,-500.0,0.00011639,2]
[348819976,1736791871343,-500.0,0.00011639,2]
[348819977,1736791871354,-500.0,0.00011639,2]
[348819978,1736791871363,-571.04,0.00011639,2]
[348819979,1736791871373,-167.56929399,0.00011639,2]
[348819980,1736791871383,-500.0,0.00011639,2]
[348819981,1736791871394,-500.0,0.00011639,2]
[348819982,1736791871403,-500.0,0.00011639,2]
[348819983,1736791871412,-500.0,0.00011639,2]
[348819984,1736791871422,-500.0,0.00011639,2]
[348819985,1736791871431,-500.0,0.00011639,2]
[348819986,1736791871441,-500.0,0.00011639,2]
[348819987,1736791871451,-522.06,0.00011639,2]
[348819988,1736791871460,-583.75,0.00011639,2]
[348819989,1736791871470,-500.0,0.00011639,2]
[348819990,1736791871480,-500.0,0.00011639,2]
[348819991,1736791871489,-500.0,0.00011639,2]
[348819992,1736791871498,-500.0,0.00011639,2]
[348819993,1736791871508,-500.0,0.00011639,2]
[348819994,1736791871518,-500.0,0.00011639,2]
[348819995,1736791871528,-500.0,0.00011639,2]
[348819996,1736791871537,-184.33356163,0.00011639,2]
[348819997,1736791871547,-500.0,0.00011639,2]
[348819998,1736791871557,-500.0,0.00011639,2]
[348819999,1736791871567,-500.0,0.00011639,2]
[348820000,1736791871578,-500.0,0.00011639,2]
[348820001,1736791871589,-500.0,0.00011639,2]
[348820002,1736791871599,-500.0,0.00011639,2]
[348820003,1736791871609,-500.0,0.00011639,2]
[348820004,1736791871619,-500.0,0.00011639,2]
[348820005,1736791871629,-500.0,0.00011639,2]
[348820006,1736791871638,-500.0,0.0001164,2]
[348820007,1736791871648,-766.88,0.0001164,2]
[348820008,1736791871658,-606.04,0.0001164,2]
[348820009,1736791871667,-543.4,0.0001164,2]
[348820010,1736791871677,-526.56,0.0001164,2]
[348820011,1736791871687,-796.11,0.0001164,2]
[348820012,1736791871697,-3037.71,0.0001164,2]
[348820013,1736791871707,-2447.81,0.0001164,2]
[348820014,1736791871717,-500.0,0.0001164,2]
[348820015,1736791871727,-500.0,0.00011911,2]
[348820016,1736791871737,-500.0,0.00011912,2]
[348820017,1736791871747,-657.79,0.00011912,2]
[348820018,1736791871757,-657.79,0.00011912,2]
[348820019,1736791871767,-185.25,0.00011912,2]
[348820020,1736791871777,-500.0,0.00011912,2]
[348820021,1736791871787,-500.0,0.00011912,2]
[348820022,1736791871797,-500.0,0.00011912,2]
[348820023,1736791871807,-500.0,0.00011912,2]
[348820024,1736791871817,-500.0,0.00011912,2]
[348820025,1736791871829,-625.86,0.00011912,2]
[348820026,1736791871839,-500.0,0.00011912,2]
[348820027,1736791871850,-500.0,0.00011912,2]
[348820028,1736791871860,-500.0,0.00011912,2]
[348820029,1736791871871,-500.0,0.00011912,2]
[348820030,1736791871881,-500.0,0.00011912,2]
[348820031,1736791871893,-500.0,0.00011912,2]
[348820032,1736791871903,-500.0,0.00011912,2]
[348820033,1736791871913,-156.71267619,0.00011912,2]
[348820034,1736791871923,-776.25,0.00011912,2]
[348820035,1736791871932,-500.0,0.00011912,2]
[348820036,1736791871942,-500.0,0.00011912,2]
[348820037,1736791871952,-500.0,0.00011912,2]
[348820038,1736791871963,-500.0,0.00011912,2]
[348820039,1736791871973,-500.0,0.00011912,2]
[348820040,1736791871983,-500.0,0.00011912,2]
[348820041,1736791871994,-500.0,0.00011912,2]
[348820042,1736791872004,-500.0,0.00011912,2]
[348820043,1736791872015,-500.0,0.00011912,2]
[348820044,1736791872027,-1465.81,0.00011912,2]
[348820045,1736791872038,-1070.74,0.00011912,2]
[348820046,1736791872048,-500.0,0.00011912,2]
[348820047,1736791872058,-933.39,0.00011912,2]
[348820048,1736791872068,-500.0,0.00011912,2]
[348820049,1736791872078,-500.0,0.00011912,2]
[348820050,1736791872088,-500.0,0.00011912,2]
[348820051,1736791872101,-500.0,0.00011912,2]
[348820052,1736791872111,-345.36178692,0.00011912,2]
[348820053,1736791872121,-465.602281,0.00011912,2]
[348820054,1736791872131,-500.0,0.00011912,2]
[348820055,1736791872143,-500.0,0.00011912,2]
[348820056,1736791872153,-500.0,0.00011912,2]
[348820057,1736791872163,-500.0,0.00011912,2]
[348820058,1736791872172,-973.22,0.00011912,2]
[348820059,1736791872183,-500.0,0.00011912,2]
[348820060,1736791872192,-500.0,0.00011912,2]
[348820061,1736791872202,-500.0,0.00011912,2]
[348820062,1736791872212,-807.84654601,0.00011912,2]
[348820063,1736791872222,-497.491515,0.00011912,2]
[348820064,1736791872232,-500.0,0.00011912,2]
[348820065,1736791872242,-500.0,0.00011912,2]
[348820066,1736791872253,-500.0,0.00011912,2]
[348820067,1736791872263,-500.0,0.00011912,2]
[348820068,1736791872274,-500.0,0.00011912,2]
[348820069,1736791872284,-548.9,0.00011912,2]
[348820070,1736791872294,-500.0,0.00011912,2]
[348820071,1736791872304,-614.15,0.00011912,2]
[348820072,1736791872315,-733.55,0.00011912,2]
[348820073,1736791872325,-152.011297,0.00011912,2]
[348820074,1736791872335,-805.44,0.00011912,2]
[348820075,1736791872346,-530.11,0.00011912,2]
[348820076,1736791872355,-631.9305156,0.00011912,2]
[348820077,1736791872366,-582.18,0.00011912,2]
[348820078,1736791872376,-500.0,0.00011912,2]
[348820079,1736791872386,-803.75,0.00011912,2]
[348820080,1736791872398,-582.81,0.00011912,2]
[348820081,1736791872408,-1134.79,0.00011912,2]
[348820082,1736791872419,-521.94,0.00011912,2]
[348820083,1736791872429,-500.0,0.00011913,2]
[348820084,1736791872440,-2064.07,0.00011913,2]
[348820085,1736791872450,-500.0,0.00011913,2]
[348820086,1736791872461,-225.61,0.00011913,2]
[348820087,1736791872471,-500.0,0.00011913,2]
[348820088,1736791872480,-500.0,0.00011913,2]
[348820089,1736791872493,-500.0,0.00011913,2]
[348820090,1736791872503,-500.0,0.00011913,2]
[348820091,1736791872513,-189.32,0.00011913,2]
[348820092,1736791872523,-500.0,0.00011913,2]
[348820093,1736791872534,-500.0,0.00011913,2]
[348820094,1736791872544,-500.0,0.00011913,2]
[348820095,1736791872554,-673.62,0.00011913,2]
[348820096,1736791872564,-287.05,0.00011913,2]
[348820097,1736791872573,-500.0,0.00011913,2]
[348820098,1736791872583,-500.0,0.00011913,2]
[348820099,1736791872593,-500.0,0.00011913,2]
[348820100,1736791872603,-500.0,0.00011913,2]
[348820101,1736791872614,-500.0,0.00011913,2]
[348820102,1736791872624,-340.43828084,0.00011913,2]
[348820103,1736791872634,-797.59,0.00011913,2]
[348820104,1736791872646,-500.0,0.00011913,2]
[348820105,1736791872655,-500.0,0.00011913,2]
[348820106,1736791872666,-500.0,0.00011913,2]
[348820107,1736791872676,-620.5,0.00011913,2]
[348820108,1736791872687,-500.0,0.00011913,2]
[348820109,1736791872697,-500.0,0.00011913,2]
[348820110,1736791872707,-500.0,0.00011913,2]
[348820111,1736791872717,-444.0503596,0.00011913,2]
[348820112,1736791872728,-571.04,0.00011913,2]
[348820113,1736791872738,-500.0,0.00011913,2]
[348820114,1736791872748,-500.0,0.00011913,2]
[348820115,1736791872757,-500.0,0.00011913,2]
[348820116,1736791872767,-500.0,0.00011913,2]
[348820117,1736791872777,-500.0,0.00011913,2]
[348820118,1736791872787,-500.0,0.00011913,2]
[348820119,1736791872798,-500.0,0.00011913,2]
[348820120,1736791872808,-583.75,0.00011913,2]
[348820121,1736791872818,-500.0,0.00011913,2]
[348820122,1736791872827,-500.0,0.00011913,2]
[348820123,1736791872838,-500.0,0.00011913,2]
[348820124,1736791872848,-462.15209165,0.00011913,2]
[348820125,1736791873487,-500.0,9.993e-05,2]
[348820126,1736791873498,-500.0,9.994e-05,2]
[348820127,1736791873508,-484.3949857,9.995e-05,2]
[348820128,1736791995452,500.0,0.00022999,120]
[348820129,1736791997654,2000.0,0.00022999,120]
[348820130,1736791999914,500.0,0.00022999,120]
[348820131,1736792023994,200.0,0.00022999,120]
[348820135,1736792582017,516.97,8.219e-05,2]
[348820164,1736793032216,-23900.0,8.897e-05,2]
[348820165,1736793032227,-250.0,8.902e-05,2]
[348820166,1736793032236,-213.68,8.916e-05,2]
[348820167,1736793032246,-250.0,9.103e-05,2]
[348820168,1736793032255,-500.0,9.3e-05,3]
[348820169,1736793032265,-1000.0,9.4e-05,3]
[348820170,1736793032275,-250.0,9.489e-05,2]
[348820171,1736793032284,-1500.0,9.5e-05,3]
[348820172,1736793032294,-258.05,9.523e-05,2]
[348820173,1736793032304,-500.0,9.536e-05,2]
[348820174,1736793032314,-281.81,9.595e-05,2]
[348820175,1736793032323,-2100.0,9.6e-05,3]
[348820176,1736793032334,-2600.0,9.7e-05,3]
[348820177,1736793032348,-922.489821,9.794e-05,2]
[348820178,1736793032357,-220.3654,9.794e-05,2]
[348820179,1736793032368,-753.1706,9.794e-05,2]
[348820180,1736793032380,-500.0,9.8e-05,3]
[348820181,1736793032390,-9948.0,9.801e-05,2]
[348820182,1736793032400,-765.4,9.867e-05,2]
[348820183,1736793032409,-401.24,9.869e-05,2]
[348820184,1736793032427,-150.0,9.892e-05,2]
[348820185,1736793032437,-500.0,9.893e-05,2]
[348820186,1736793032448,-1831.43,9.893e-05,2]
[348820187,1736793032459,-1769.01,9.893e-05,2]
[348820188,1736793032469,-500.0,9.893e-05,2]
[348820189,1736793032480,-500.0,9.893e-05,2]
[348820190,1736793032491,-621.47,9.893e-05,2]
[348820191,1736793032502,-1516.15,9.893e-05,2]
[348820192,1736793032513,-500.0,9.893e-05,2]
[348820193,1736793032523,-500.0,9.893e-05,2]
[348820194,1736793032533,-500.0,9.893e-05,2]
[348820195,1736793032543,-500.0,9.893e-05,2]
[348820196,1736793032552,-500.0,9.893e-05,2]
[348820197,1736793032562,-500.0,9.893e-05,2]
[348820198,1736793032571,-500.0,9.893e-05,2]
[348820199,1736793032581,-932.78,9.893e-05,2]
[348820200,1736793032592,-500.0,9.893e-05,2]
[348820201,1736793032601,-500.0,9.893e-05,2]
[348820202,1736793032610,-500.0,9.893e-05,2]
[348820203,1736793032620,-500.0,9.893e-05,2]
[348820204,1736793032629,-500.0,9.893e-05,2]
[348820205,1736793032639,-500.0,9.893e-05,2]
[348820206,1736793032648,-500.0,9.893e-05,2]
[348820207,1736793032658,-500.0,9.893e-05,2]
[348820208,1736793032673,-500.0,9.893e-05,2]
[348820209,1736793032683,-500.0,9.893e-05,2]
[348820210,1736793032692,-500.0,9.893e-05,2]
[348820212,1736793032702,-227.7608,9.894e-05,2]
[348820213,1736793032711,-180.2331,9.894e-05,2]
[348820215,1736793032721,-19153.1068,9.894e-05,2]
[348820217,1736793032730,-413688.9067,9.894e-05,2]
[348820219,1736793032739,-9440.6052,9.894e-05,2]
[348820221,1736793032748,-1151.1228,9.896e-05,2]
[348820223,1736793032758,-41497.18703771,9.9e-05,2]
[348820225,1736793032767,-500.0,9.9e-05,3]
[348820227,1736793032776,-9759.0,9.973e-05,2]
[348820229,1736793032785,-96986.66644243,9.988e-05,2]
[348820231,1736793032794,-500.0,9.993e-05,2]
[348820233,1736793032803,-500.0,9.993e-05,2]
[348820235,1736793032812,-500.0,9.993e-05,2]
[348820237,1736793032822,-500.0,9.993e-05,2]
[348820239,1736793032831,-500.0,9.993e-05,2]
[348820241,1736793032839,-500.0,9.993e-05,2]
[348820242,1736793032848,-500.0,9.993e-05,2]
[348820244,1736793032858,-501.07355837,9.993e-05,2]
[348820246,1736793032867,-500.0,9.993e-05,2]
[348820247,1736793032876,-500.0,9.993e-05,2]
[348820248,1736793032885,-500.0,9.993e-05,2]
[348820249,1736793032894,-500.0,9.993e-05,2]
[348820250,1736793032904,-500.0,9.993e-05,2]
[348820251,1736793032915,-500.0,9.993e-05,2]
[348820253,1736793032924,-500.0,9.993e-05,2]
[348820255,1736793032934,-500.0,9.993e-05,2]
[348820257,1736793032943,-500.0,9.993e-05,2]
[348820258,1736793032952,-500.0,9.993e-05,2]
[348820259,1736793032962,-500.0,9.993e-05,2]
[348820260,1736793032972,-500.0,9.993e-05,2]
[348820262,1736793032981,-500.0,9.993e-05,2]
[348820264,1736793032990,-500.0,9.993e-05,2]
[348820266,1736793033000,-500.0,9.993e-05,2]
[348820268,1736793033010,-500.0,9.993e-05,2]
[348820270,1736793033020,-500.0,9.993e-05,2]
[348820272,1736793033029,-500.0,9.993e-05,2]
[348820274,1736793033039,-500.0,9.993e-05,2]
[348820276,1736793033048,-500.0,9.993e-05,2]
[348820278,1736793033058,-500.0,9.993e-05,2]
[348820280,1736793033068,-500.0,9.993e-05,2]
[348820282,1736793033077,-500.0,9.993e-05,2]
[348820284,1736793033087,-500.0,9.993e-05,2]
[348820286,1736793033096,-500.0,9.993e-05,2]
[348820288,1736793033106,-500.0,9.993e-05,2]
[348820289,1736793033115,-542.11,9.993e-05,2]
[348820290,1736793033125,-500.0,9.993e-05,2]
[348820291,1736793033134,-500.0,9.993e-05,2]
[348820292,1736793033144,-500.0,9.993e-05,2]
[348820293,1736793033153,-500.0,9.993e-05,2]
[348820294,1736793033166,-500.0,9.993e-05,2]
[348820295,1736793033177,-500.0,9.993e-05,2]
[348820296,1736793033187,-500.0,9.993e-05,2]
[348820297,1736793033198,-500.0,9.993e-05,2]
[348820298,1736793033208,-500.0,9.993e-05,2]
[348820299,1736793033218,-500.0,9.993e-05,2]
[348820300,1736793033228,-500.0,9.993e-05,2]
[348820301,1736793033237,-500.0,9.993e-05,2]
[348820302,1736793033247,-500.0,9.993e-05,2]
[348820303,1736793033257,-500.0,9.993e-05,2]
[348820304,1736793033266,-500.0,9.993e-05,2]
[348820305,1736793033276,-500.0,9.993e-05,2]
[348820306,1736793033286,-500.0,9.993e-05,2]
[348820307,1736793033296,-500.0,9.993e-05,2]
[348820308,1736793033306,-500.0,9.993e-05,2]
[348820309,1736793033315,-500.0,9.993e-05,2]
[348820310,1736793033325,-500.0,9.993e-05,2]
[348820311,1736793033335,-500.0,9.993e-05,2]
[348820312,1736793033350,-500.0,9.993e-05,2]
[348820313,1736793033360,-500.0,9.993e-05,2]
[348820314,1736793033373,-500.0,9.993e-05,2]
[348820315,1736793033384,-500.0,9.993e-05,2]
[348820316,1736793033394,-500.0,9.993e-05,2]
[348820317,1736793033404,-500.0,9.993e-05,2]
[348820318,1736793033420,-500.0,9.993e-05,2]
[348820319,1736793033430,-500.0,9.993e-05,2]
[348820320,1736793033441,-500.0,9.993e-05,2]
[348820321,1736793033451,-500.0,9.993e-05,2]
[348820322,1736793033460,-500.0,9.993e-05,2]
[348820323,1736793033471,-500.0,9.993e-05,2]
[348820324,1736793033480,-500.0,9.993e-05,2]
[348820325,1736793033490,-500.0,9.993e-05,2]
[348820326,1736793033500,-500.0,9.993e-05,2]
[348820327,1736793033510,-500.0,9.993e-05,2]
[348820328,1736793033520,-500.0,9.993e-05,2]
[348820329,1736793033530,-500.0,9.993e-05,2]
[348820330,1736793033540,-500.0,9.993e-05,2]
[348820331,1736793033549,-500.0,9.993e-05,2]
[348820332,1736793033559,-500.0,9.993e-05,2]
[348820333,1736793033569,-852.03,9.993e-05,2]
[348820334,1736793033578,-500.0,9.993e-05,2]
[348820335,1736793033588,-195.49704332,9.994e-05,2]
[348820336,1736793033597,-503.08801832,9.994e-05,2]
[348820337,1736793033606,-500.0,9.994e-05,2]